bitfinex/quotes_BTCUSD_20220212
["timestamp","ask_amount","ask_price","bid_price","bid_amount"]
[1644654558288,0.00032298,42278.0,42276.0,0.75]
[1644654558490,0.00032298,42278.0,42277.0,0.3001]
[1644654558685,0.00032298,42278.0,42277.0,0.0001]
[1644654558885,0.30154839,42291.0,42277.0,0.0001]
[1644654558886,0.30154839,42290.0,42277.0,0.0001]
[1644654559087,0.35154839,42291.0,42280.0,0.05]
[1644654559289,0.30154839,42291.0,42289.0,0.26433837]
[1644654559528,0.3,42290.0,42289.0,0.17511437]
[1644654559828,0.3,42290.0,42288.0,0.08227472]
[1644654560029,0.3,42290.0,42288.0,0.07727472]
[1644654560430,0.3,42290.0,42281.0,0.3]
[1644654560631,0.60137319,42290.0,42278.0,0.28868563]
[1644654560828,0.60137319,42290.0,42279.0,0.19876698]
[1644654561028,0.3,42290.0,42279.0,0.19876698]
[1644654561429,0.00053083,42287.0,42281.0,0.07247966]
[1644654561633,0.00053083,42287.0,42279.0,0.19876698]
[1644654562329,0.11707934,42289.0,42279.0,0.19876698]
[1644654562729,0.00053083,42285.0,42280.0,0.06426978]
[1644654562932,0.00053083,42285.0,42279.0,0.19876698]
[1644654563577,0.11707934,42289.0,42279.0,0.19876698]
[1644654563778,0.00053084,42284.0,42279.0,0.19876698]
[1644654563976,0.00053084,42284.0,42280.0,0.08281959]
[1644654564175,0.00053084,42284.0,42279.0,0.19876698]
[1644654564576,0.00053084,42284.0,42280.0,0.0001]
[1644654564775,0.11707934,42289.0,42280.0,0.0001]
[1644654564977,0.00053084,42284.0,42280.0,0.0001]
[1644654565178,0.07332468,42281.0,42280.0,0.0001]
[1644654565380,0.07332468,42281.0,42278.0,0.0001]
[1644654565579,0.07332468,42281.0,42276.0,0.0001]
[1644654565580,0.05,42280.0,42276.0,0.0001]
[1644654566376,0.05053086,42280.0,42276.0,0.0001]
[1644654567328,0.05,42280.0,42276.0,0.0001]
[1644654567531,0.05053086,42280.0,42276.0,0.0001]
[1644654568131,0.39932546,42280.0,42276.0,0.0001]
[1644654568332,0.3014946,42279.0,42276.0,0.0001]
[1644654568529,0.0473,42278.0,42276.0,0.0001]
[1644654568931,0.24722499,42278.0,42276.0,0.0001]
[1644654569330,0.59871959,42278.0,42276.0,0.0001]
[1644654569529,0.64871959,42278.0,42276.0,0.0001]
[1644654569736,0.74871959,42278.0,42276.0,0.0001]
[1644654570129,0.3014946,42277.0,42276.0,0.0001]
[1644654570330,0.4487946,42277.0,42276.0,0.0001]
[1644654570533,0.1473,42277.0,42276.0,0.0001]
[1644654570786,0.1973,42277.0,42276.0,0.0001]
[1644654571580,0.0973,42277.0,42276.0,0.0001]
[1644654571780,0.0473,42277.0,42276.0,0.0001]
[1644654571981,0.39890206,42277.0,42276.0,0.0001]
[1644654572387,0.0473,42277.0,42276.0,0.0001]
[1644654572588,0.677676,42288.0,42276.0,0.0001]
[1644654572589,0.04749942,42284.0,42276.0,0.0001]
[1644654572783,0.44913092,42287.0,42276.0,0.0001]
[1644654572784,0.40183092,42289.0,42276.0,0.3001]
[1644654572988,0.04744602,42288.0,42277.0,0.0001]
[1644654573384,0.21921029,42289.0,42286.0,0.21921972]
[1644654573581,0.04742745,42288.0,42287.0,0.0001]
[1644654573985,0.21921029,42289.0,42287.0,0.0001]
[1644654574182,0.0474289,42288.0,42287.0,0.0001]
[1644654574645,0.0474289,42288.0,42280.0,0.0001]
[1644654575245,0.0474289,42288.0,42279.0,0.0001]
[1644654575445,0.0474289,42288.0,42281.0,0.23733842]
[1644654575646,0.0474289,42288.0,42282.0,0.0001]
[1644654575850,0.08456628,42283.0,42282.0,0.0001]
[1644654576748,0.00032254,42286.0,42282.0,0.0001]
[1644654576949,0.22555276,42287.0,42282.0,0.0001]
[1644654577250,0.00053084,42285.0,42282.0,0.0001]
[1644654577848,0.00053084,42285.0,42278.0,0.0001]
[1644654578051,0.27555276,42287.0,42278.0,0.0001]
[1644654578290,0.00053083,42286.0,42278.0,0.0001]
[1644654578682,0.00053083,42286.0,42278.0,0.20205186]
[1644654578886,0.0770179,42283.0,42279.0,0.0001]
[1644654579483,0.07754874,42283.0,42279.0,0.0001]
[1644654580484,0.0770179,42283.0,42279.0,0.0001]
[1644654580684,0.07754874,42283.0,42279.0,0.0001]
[1644654581688,0.0770179,42283.0,42279.0,0.0001]
[1644654581892,0.35207705,42282.0,42279.0,0.0001]
[1644654583137,0.00053085,42283.0,42279.0,0.27159223]
[1644654583338,0.00053085,42283.0,42280.0,0.0001]
[1644654584238,0.00053084,42284.0,42280.0,0.0001]
[1644654585238,0.35207705,42285.0,42280.0,0.0001]
[1644654585444,0.00053084,42284.0,42280.0,0.0001]
[1644654586485,0.59207705,42286.0,42280.0,0.0001]
[1644654586486,0.59207705,42286.0,42283.0,0.06894576]
[1644654586788,0.24,42286.0,42284.0,0.26301283]
[1644654586983,0.24,42286.0,42284.0,0.26300163]
[1644654587385,0.24,42286.0,42283.0,0.06894576]
[1644654588091,0.24,42286.0,42284.0,0.2621083]
[1644654588285,0.24,42286.0,42285.0,0.22014036]
[1644654588485,0.24,42286.0,42280.0,0.29899144]
[1644654588686,0.59207705,42286.0,42278.0,0.1]
[1644654588886,0.59207705,42286.0,42277.0,0.27904929]
[1644654589286,0.00053083,42285.0,42277.0,0.27904929]
[1644654589535,0.35260788,42285.0,42277.0,0.53925566]
[1644654589836,0.08507892,42283.0,42277.0,0.53925566]
[1644654590235,0.08507892,42283.0,42277.0,0.26020637]
[1644654590435,0.08560976,42283.0,42277.0,0.26020637]
[1644654591235,0.35207705,42284.0,42277.0,0.26020637]
[1644654591437,0.00053085,42282.0,42278.0,0.26547685]
[1644654591636,0.00053085,42282.0,42277.0,0.26020637]
[1644654591935,0.00053085,42282.0,42278.0,0.26257322]
[1644654592134,0.00053085,42282.0,42279.0,0.0001]
[1644654592537,0.35207705,42285.0,42279.0,0.0001]
[1644654592740,0.00053085,42283.0,42279.0,0.0001]
[1644654592940,0.00053085,42283.0,42276.0,0.3]
[1644654592941,0.3526079,42283.0,42277.0,0.0001]
[1644654593140,0.3526079,42283.0,42276.0,0.0001]
[1644654593386,0.35207705,42282.0,42276.0,0.0001]
[1644654593585,0.00053085,42283.0,42276.0,0.0001]
[1644654593586,0.3526079,42283.0,42276.0,0.0001]
[1644654593786,0.06648484,42280.0,42276.0,0.0001]
[1644654595391,0.06525315,42280.0,42276.0,0.0001]
[1644654599241,0.00048904,42281.0,42276.0,0.26271097]
[1644654599438,0.00048904,42281.0,42277.0,0.0001]
[1644654599637,0.00048904,42281.0,42275.0,0.302]
[1644654599638,0.13065482,42284.0,42276.0,0.0001]
[1644654599941,0.00049185,42281.0,42276.0,0.0001]
[1644654600986,0.18297811,42282.0,42276.0,0.0001]
[1644654601182,0.00049185,42281.0,42276.0,0.0001]
[1644654602082,0.35215628,42281.0,42276.0,0.0001]
[1644654602283,0.05,42280.0,42276.0,0.0001]
[1644654602483,0.40215628,42280.0,42276.0,0.0001]
[1644654603283,0.35215628,42281.0,42276.0,0.0001]
[1644654603486,0.05,42280.0,42276.0,0.0001]
[1644654603882,0.35264794,42281.0,42276.0,0.0001]
[1644654603883,0.40264794,42281.0,42276.0,0.0001]
[1644654604533,0.40215628,42281.0,42276.0,0.0001]
[1644654604736,0.05,42280.0,42276.0,0.0001]
[1644654604934,0.40215628,42280.0,42276.0,0.0001]
[1644654605337,0.24788454,42279.0,42276.0,0.0001]
[1644654605536,0.35215628,42278.0,42276.0,0.0001]
[1644654605740,0.29788454,42279.0,42276.0,0.0001]
[1644654605741,0.35219123,42277.0,42276.0,0.0001]
[1644654606738,0.08580492,42277.0,42276.0,0.0001]
[1644654607336,0.27558189,42277.0,42276.0,0.0001]
[1644654607539,0.37558189,42277.0,42276.0,0.0001]
[1644654607738,0.37558189,42277.0,42276.0,4e-05]
[1644654608136,0.47558189,42277.0,42276.0,4e-05]
[1644654608994,0.87741281,42277.0,42276.0,4e-05]
[1644654609196,0.48312506,42277.0,42276.0,4e-05]
[1644654609395,0.89249915,42277.0,42276.0,4e-05]
[1644654609595,0.49066823,42277.0,42276.0,4e-05]
[1644654609796,0.59784931,42277.0,42276.0,4e-05]
[1644654609995,0.49066823,42277.0,42276.0,4e-05]
[1644654610194,0.30089126,42277.0,42276.0,4e-05]
[1644654610396,0.20089126,42277.0,42276.0,4e-05]
[1644654610595,0.30089126,42277.0,42276.0,4e-05]
[1644654611094,0.57020928,42277.0,42276.0,4e-05]
[1644654611301,0.6100335,42277.0,42276.0,4e-05]
[1644654611494,0.57020928,42277.0,42276.0,4e-05]
[1644654613534,0.67719874,42277.0,42276.0,4e-05]
[1644654613939,0.71564709,42277.0,42276.0,4e-05]
[1644654614138,0.75,42275.0,42268.0,0.05]
[1644654614335,0.05,42270.0,42269.0,0.0004918]
[1644654614537,0.0973,42270.0,42269.0,0.0004918]
[1644654614836,0.1473,42270.0,42269.0,0.0004918]
[1644654615034,0.49936452,42270.0,42269.0,0.0004918]
[1644654615236,0.35683629,42270.0,42269.0,0.0004918]
[1644654615435,0.08783582,42261.0,42257.0,0.3]
[1644654615639,0.08783582,42261.0,42256.0,0.00023154]
[1644654615884,0.08283582,42261.0,42255.0,0.00023154]
[1644654616086,0.08283582,42261.0,42254.0,0.30023154]
[1644654616682,0.08283582,42261.0,42255.0,0.00049183]
[1644654616884,0.08283582,42261.0,42255.0,0.00072337]
[1644654617286,0.08283582,42261.0,42257.0,0.07251533]
[1644654617686,0.08283582,42261.0,42256.0,0.00023154]
[1644654617888,0.08283582,42261.0,42247.0,0.32754756]
[1644654617889,0.13283582,42261.0,42257.0,0.00049183]
[1644654618890,0.03578645,42261.0,42254.0,0.25222861]
[1644654619090,0.03578645,42261.0,42257.0,0.00049183]
[1644654620139,0.03578645,42261.0,42258.0,0.07578038]
[1644654620337,0.03578645,42261.0,42259.0,0.0001]
[1644654620739,0.00754317,42260.0,42259.0,0.0001]
[1644654621037,0.03578645,42261.0,42260.0,0.01508633]
[1644654621239,0.1473,42262.0,42260.0,0.01508633]
[1644654622241,0.1473,42262.0,42260.0,0.01008633]
[1644654624789,0.18328707,42262.0,42260.0,0.01008633]
[1644654624987,0.42328707,42262.0,42260.0,0.01008633]
[1644654625389,0.4873,42262.0,42260.0,0.01008633]
[1644654625590,0.05754317,42261.0,42260.0,0.01008633]
[1644654625792,0.10484317,42261.0,42260.0,0.01008633]
[1644654626089,0.05484317,42261.0,42260.0,0.01008633]
[1644654627141,0.05724694,42261.0,42260.0,0.01008633]
[1644654627538,0.05661683,42261.0,42260.0,0.01008633]
[1644654628340,0.05661683,42261.0,42260.0,0.01018633]
[1644654629243,0.00931683,42261.0,42260.0,0.01018633]
[1644654630638,0.00240377,42261.0,42260.0,0.01018633]
[1644654630883,0.00931683,42261.0,42260.0,0.01018633]
[1644654633982,0.00919777,42261.0,42260.0,0.01018633]
[1644654636633,0.04449668,42261.0,42260.0,0.01018633]
[1644654641083,0.00919777,42261.0,42260.0,0.01018633]
[1644654650138,0.00919777,42261.0,42260.0,0.29474056]
[1644654650935,0.1174,42273.0,42264.0,0.28795411]
[1644654651237,0.05,42272.0,42265.0,0.0001]
[1644654651735,0.05,42272.0,42266.0,0.00049081]
[1644654651936,0.28644808,42272.0,42266.0,0.00049081]
[1644654652135,0.06567593,42271.0,42266.0,0.00049081]
[1644654652535,0.06567593,42271.0,42265.0,0.0001]
[1644654652739,0.06567593,42271.0,42266.0,0.07110453]
[1644654652937,0.06567593,42271.0,42267.0,0.0001]
[1644654653990,0.3522289,42270.0,42267.0,0.0005908]
[1644654654190,0.41790483,42271.0,42267.0,0.0005908]
[1644654654392,0.1,42270.0,42267.0,0.0005908]
[1644654654793,0.61790483,42271.0,42267.0,0.0005908]
[1644654654990,0.61790483,42271.0,42267.0,0.0001]
[1644654655190,0.26567593,42271.0,42267.0,0.0001]
[1644654655393,0.16567593,42271.0,42267.0,0.0001]
[1644654656391,0.16567593,42271.0,42267.0,0.0005908]
[1644654656591,0.51790483,42271.0,42267.0,0.0005908]
[1644654656792,0.16567593,42271.0,42267.0,0.0004908]
[1644654657036,0.1,42271.0,42267.0,0.0004908]
[1644654657236,0.68867698,42272.0,42267.0,0.0004908]
[1644654657437,0.68867698,42272.0,42266.0,0.0001]
[1644654657636,0.68867698,42272.0,42267.0,0.0004908]
[1644654658039,0.92867698,42272.0,42267.0,0.0004908]
[1644654658536,0.92867698,42272.0,42265.0,0.0001]
[1644654658738,1.02867698,42272.0,42267.0,0.08825056]
[1644654658938,1.02867698,42272.0,42268.0,0.0001]
[1644654659338,0.7922289,42272.0,42268.0,0.0001]
[1644654660037,0.7922289,42272.0,42268.0,0.0005908]
[1644654660889,0.3522289,42271.0,42268.0,0.0001]
[1644654661091,0.44,42272.0,42268.0,0.0005908]
[1644654661092,0.7922289,42272.0,42268.0,0.0005908]
[1644654661290,0.6922289,42272.0,42268.0,0.0005908]
[1644654661491,0.24,42272.0,42268.0,0.0005908]
[1644654661689,0.24,42272.0,42268.0,0.26912973]
[1644654661888,0.24,42272.0,42269.0,0.0001]
[1644654662091,0.24,42272.0,42268.0,0.0001]
[1644654662489,0.24,42272.0,42271.0,0.2248613]
[1644654662690,0.24,42272.0,42271.0,0.2249613]
[1644654663090,0.29,42272.0,42271.0,0.2249613]
[1644654663293,0.29,42272.0,42271.0,0.0001]
[1644654663492,0.29,42272.0,42269.0,0.0001]
[1644654663493,0.34,42272.0,42269.0,0.0001]
[1644654663690,0.34,42272.0,42269.0,0.00059079]
[1644654664290,0.34,42272.0,42269.0,0.24589806]
[1644654664534,0.34,42272.0,42270.0,0.0001]
[1644654667436,0.29,42272.0,42270.0,0.0001]
[1644654667636,0.05,42271.0,42270.0,0.0001]
[1644654667836,0.34,42272.0,42270.0,0.0001]
[1644654670289,0.29,42272.0,42270.0,0.0001]
[1644654672841,0.34,42272.0,42270.0,0.0001]
[1644654673443,0.71729973,42272.0,42270.0,0.0001]
[1644654673648,0.69214448,42272.0,42270.0,0.0001]
[1644654674245,0.06988718,42271.0,42270.0,0.0001]
[1644654674443,0.42203166,42271.0,42270.0,0.0001]
[1644654674845,0.06988718,42271.0,42270.0,0.0001]
[1644654676494,0.69214448,42272.0,42270.0,0.0001]
[1644654676991,0.1148,42278.0,42270.0,0.0001]
[1644654677201,0.43424117,42285.0,42270.0,0.0001]
[1644654677202,0.11775719,42286.0,42277.0,0.05]
[1644654677401,0.05040918,42301.0,42284.0,0.05]
[1644654677402,0.0942118,42297.0,42284.0,0.05]
[1644654677600,0.001,42301.0,42284.0,0.05]
[1644654677601,0.0952118,42301.0,42291.0,0.05]
[1644654677801,0.0952118,42301.0,42285.0,0.3473]
[1644654677802,0.001,42301.0,42285.0,0.3473]
[1644654678095,0.21727844,42300.0,42293.0,0.22457692]
[1644654678291,0.21727844,42300.0,42285.0,0.3]
[1644654678292,0.21727844,42300.0,42295.0,0.05]
[1644654678494,0.21727844,42300.0,42296.0,0.0001]
[1644654678896,0.001,42301.0,42296.0,0.0001]
[1644654679097,0.001,42301.0,42296.0,0.3001]
[1644654679296,0.001,42301.0,42296.0,0.4974]
[1644654679576,0.003,42305.0,42300.0,0.05]
[1644654679577,0.00228465,42305.0,42300.0,0.05]
[1644654679767,0.00228465,42305.0,42301.0,0.11153263]
[1644654679966,0.00228465,42305.0,42302.0,0.19192538]
[1644654680168,0.00228465,42305.0,42302.0,0.23922538]
[1644654680766,0.24228465,42305.0,42302.0,0.23922538]
[1644654681364,0.24228465,42305.0,42303.0,0.27105079]
[1644654681567,0.24228465,42305.0,42303.0,0.27065079]
[1644654681965,0.24228465,42305.0,42302.0,0.33922538]
[1644654682466,0.24228465,42305.0,42303.0,0.0001]
[1644654684294,0.23728465,42305.0,42303.0,0.0001]
[1644654684695,0.00273705,42304.0,42303.0,0.0001]
[1644654685193,0.00273705,42304.0,42303.0,0.26282213]
[1644654685794,0.23728465,42305.0,42304.0,0.75]
[1644654685795,0.21466981,42305.0,42304.0,0.75]
[1644654685999,0.21466981,42305.0,42304.0,1.17902471]
[1644654686193,0.21466981,42305.0,42304.0,1.4668537]
[1644654686395,0.21466981,42305.0,42304.0,1.55096647]
[1644654686595,0.0152423,42305.0,42304.0,1.55096647]
[1644654686797,0.002,42306.0,42305.0,0.7804846]
[1644654687046,0.002,42306.0,42305.0,1.12756583]
[1644654687248,0.003,42319.0,42306.0,0.75]
[1644654687449,0.003,42319.0,42308.0,0.05]
[1644654687648,0.003,42319.0,42308.0,0.38116131]
[1644654687849,0.003,42319.0,42308.0,0.43116131]
[1644654688849,0.003,42319.0,42308.0,0.48116131]
[1644654689248,0.003,42319.0,42308.0,0.43116131]
[1644654689553,0.003,42319.0,42308.0,0.48116131]
[1644654689748,0.003,42319.0,42308.0,0.43116131]
[1644654690650,0.003,42319.0,42308.0,0.48116131]
[1644654690914,0.001,42314.0,42308.0,0.48116131]
[1644654691111,0.001,42314.0,42311.0,0.05]
[1644654691310,0.002,42321.0,42314.0,0.75]
[1644654691517,0.002,42323.0,42318.0,0.75]
[1644654691518,0.00871479,42322.0,42318.0,0.75]
[1644654691713,0.001,42325.0,42320.0,0.75]
[1644654691912,0.002,42332.0,42323.0,0.05]
[1644654691913,0.003,42329.0,42323.0,0.05]
[1644654692116,0.003,42329.0,42324.0,0.3473]
[1644654692410,0.002,42332.0,42325.0,0.82366894]
[1644654692411,0.0001,42330.0,42325.0,0.82366894]
[1644654692609,0.0001,42330.0,42326.0,0.24997531]
[1644654692810,0.0001,42330.0,42327.0,0.0473]
[1644654693410,0.0001,42330.0,42327.0,0.3473]
[1644654693613,0.001,42334.0,42329.0,0.892]
[1644654693815,0.001,42334.0,42332.0,0.05]
[1644654694012,0.001,42334.0,42333.0,0.0473]
[1644654694546,0.001,42334.0,42333.0,0.11419741]
[1644654694749,0.001,42334.0,42333.0,0.0473]
[1644654697947,0.001,42334.0,42333.0,0.32121394]
[1644654698391,0.001,42334.0,42333.0,0.1473]
[1644654698792,0.002,42339.0,42334.0,0.75]
[1644654698994,0.002,42339.0,42335.0,0.24620886]
[1644654699590,0.002,42339.0,42335.0,0.05292499]
[1644654700892,0.00031957,42338.0,42335.0,0.05292499]
[1644654701793,0.002,42339.0,42335.0,0.31944805]
[1644654702046,0.002,42339.0,42336.0,0.28783783]
[1644654702245,0.00031957,42338.0,42336.0,0.28783783]
[1644654702848,0.00031957,42338.0,42337.0,0.75]
[1644654703047,0.002,42339.0,42337.0,1.06434984]
[1644654703245,0.001,42341.0,42339.0,0.75]
[1644654703446,0.001,42341.0,42340.0,0.09424715]
[1644654704649,0.001,42341.0,42340.0,0.0473]
[1644654706300,0.001,42341.0,42336.0,0.1]
[1644654706499,0.001,42341.0,42335.0,0.00717713]
[1644654706899,0.00153394,42341.0,42335.0,0.00717713]
[1644654707802,0.00153394,42341.0,42335.0,0.00155214]
[1644654708010,0.001,42341.0,42335.0,0.00155214]
[1644654708203,0.00053394,42340.0,42335.0,0.00155214]
[1644654708403,0.29121624,42336.0,42335.0,0.00155214]
[1644654709645,0.2233652,42336.0,42335.0,0.00155214]
[1644654710047,0.2233652,42336.0,42329.0,0.05154579]
[1644654710453,0.07241848,42330.0,42329.0,0.05154579]
[1644654710846,0.3233652,42336.0,42329.0,0.05154579]
[1644654711048,0.0473,42335.0,42329.0,0.05154579]
[1644654711251,0.2827212,42333.0,42329.0,0.04654579]
[1644654711446,0.0473,42332.0,42329.0,0.04654579]
[1644654712044,0.07848825,42331.0,42329.0,0.04654579]
[1644654712246,0.0473,42330.0,42329.0,0.04654579]
[1644654712845,0.0473,42330.0,42323.0,0.00053391]
[1644654713053,0.0973,42330.0,42326.0,0.05]
[1644654714193,0.22552323,42328.0,42326.0,0.05]
[1644654714394,0.0473,42327.0,42326.0,0.05]
[1644654717742,0.24,42330.0,42326.0,0.05]
[1644654717946,0.050533,42338.0,42327.0,0.3]
[1644654717947,0.000533,42338.0,42327.0,0.3]
[1644654718148,0.000533,42338.0,42330.0,0.05]
[1644654718347,0.000533,42338.0,42331.0,0.4893]
[1644654718544,0.001,42343.0,42338.0,0.001066]
[1644654718743,0.001,42343.0,42338.0,0.048366]
[1644654719943,0.001,42343.0,42338.0,0.001066]
[1644654720143,0.00031722,42342.0,42338.0,0.27939364]
[1644654720645,0.00031722,42342.0,42339.0,0.0473]
[1644654720899,0.00031722,42342.0,42340.0,0.26950641]
[1644654721100,0.001,42343.0,42340.0,0.26950641]
[1644654721307,0.00053118,42342.0,42340.0,0.31680641]
[1644654721499,0.00053118,42342.0,42340.0,0.40364266]
[1644654721698,0.00053118,42342.0,42340.0,0.50364266]
[1644654722299,0.001,42343.0,42340.0,0.50364266]
[1644654722598,0.00153118,42343.0,42340.0,0.50364266]
[1644654723600,0.001,42343.0,42340.0,0.50364266]
[1644654723800,0.00153118,42343.0,42340.0,0.50364266]
[1644654724741,0.001,42343.0,42340.0,0.41680641]
[1644654724941,0.00153118,42343.0,42340.0,0.41680641]
[1644654725142,0.00037076,42341.0,42340.0,0.41822204]
[1644654725947,0.24037076,42341.0,42340.0,0.41822204]
[1644654726144,0.24037076,42341.0,42340.0,0.14871563]
[1644654726343,0.24037076,42341.0,42340.0,0.04871563]
[1644654726743,0.24037076,42341.0,42340.0,0.04371563]
[1644654727145,0.00037076,42341.0,42340.0,0.04371563]
[1644654728151,0.00037076,42341.0,42338.0,0.001066]
[1644654729699,7.076e-05,42343.0,42340.0,0.05]
[1644654729895,7.076e-05,42343.0,42341.0,0.0473]
[1644654729896,0.00053118,42342.0,42341.0,0.0473]
[1644654730494,0.00053118,42342.0,42341.0,0.28286669]
[1644654730693,7.076e-05,42343.0,42341.0,0.28286669]
[1644654731794,7.076e-05,42343.0,42342.0,0.2844649]
[1644654732647,0.003,42348.0,42340.0,0.00141563]
[1644654732648,0.00160193,42348.0,42340.0,0.00141563]
[1644654733442,0.06386162,42343.0,42340.0,0.00141563]
[1644654734843,0.06386162,42343.0,42338.0,0.001066]
[1644654734844,0.0021632,42342.0,42338.0,0.001066]
[1644654735345,0.04102482,42343.0,42339.0,0.35]
[1644654735542,0.04102482,42343.0,42338.0,0.001066]
[1644654736603,0.22102482,42343.0,42338.0,0.001066]
[1644654737006,0.22102482,42343.0,42338.0,0.00159723]
[1644654738004,0.22102482,42343.0,42338.0,0.001066]
[1644654738204,0.22102482,42343.0,42338.0,0.00159723]
[1644654738404,0.00053113,42346.0,42345.0,0.07897518]
[1644654738608,0.08964897,42346.0,42345.0,0.07897518]
[1644654739104,0.08911784,42346.0,42345.0,0.07897518]
[1644654740649,0.13911784,42346.0,42345.0,0.07897518]
[1644654741051,0.18641784,42346.0,42345.0,0.07897518]
[1644654741250,0.18641784,42346.0,42339.0,0.00053126]
[1644654741251,0.75,42344.0,42339.0,0.00053126]
[1644654741454,0.05,42340.0,42339.0,0.00053126]
[1644654741648,0.05,42340.0,42338.0,0.001066]
[1644654741649,0.30902288,42340.0,42338.0,0.001066]
[1644654741846,0.30902288,42340.0,42339.0,0.00053123]
[1644654742247,0.50132882,42340.0,42339.0,0.00053123]
[1644654742446,0.63383569,42339.0,42336.0,0.00159723]
[1644654742646,0.63383569,42339.0,42330.0,0.3]
[1644654742845,0.63383569,42339.0,42327.0,0.3]
[1644654743306,0.40402882,42340.0,42327.0,0.3]
[1644654744110,0.40402882,42340.0,42326.0,0.18080738]
[1644654744301,0.39902882,42340.0,42326.0,0.08080738]
[1644654744503,0.20672288,42340.0,42327.0,0.27698647]
[1644654745113,0.00031676,42344.0,42327.0,0.27698647]
[1644654745305,0.00107327,42341.0,42328.0,0.5633]
[1644654745503,0.00107327,42341.0,42338.0,0.06479507]
[1644654745705,0.00107327,42341.0,42328.0,0.5633]
[1644654745706,0.00107327,42341.0,42331.0,0.0473]
[1644654745905,0.00107327,42341.0,42336.0,0.0473]
[1644654746713,0.00107327,42341.0,42316.0,2.56469833]
[1644654746714,0.05,42337.0,42323.0,0.19690906]
[1644654746911,0.8,42338.0,42321.0,0.0001]
[1644654746912,0.05,42332.0,42321.0,0.0001]
[1644654747154,0.0473,42331.0,42319.0,0.0001]
[1644654747353,0.0473,42331.0,42314.0,0.0001]
[1644654747555,0.07937362,42315.0,42314.0,0.0001]
[1644654747758,0.07937362,42315.0,42312.0,0.0001]
[1644654747759,0.38999601,42315.0,42312.0,0.0001]
[1644654747957,0.38999601,42315.0,42305.0,0.0305846]
[1644654747958,0.05,42314.0,42305.0,0.0305846]
[1644654748159,0.38999601,42315.0,42305.0,0.0304846]
[1644654748160,0.0973,42313.0,42305.0,0.0304846]
[1644654748356,0.0473,42312.0,42305.0,0.0304846]
[1644654748555,0.02152,42316.0,42315.0,0.09648958]
[1644654748760,0.02152,42316.0,42305.0,0.0304846]
[1644654748761,0.21874209,42308.0,42305.0,0.0304846]
[1644654748959,0.0473,42307.0,42305.0,0.0304846]
[1644654749858,0.25250167,42307.0,42305.0,0.0304846]
[1644654750060,0.35097167,42307.0,42305.0,0.0304846]
[1644654751709,0.0473,42307.0,42305.0,0.0304846]
[1644654753308,0.25886182,42310.0,42305.0,0.0304846]
[1644654753511,0.0435,42309.0,42305.0,0.0304846]
[1644654754968,0.00165782,42307.0,42305.0,0.0304846]
[1644654756968,0.0435,42309.0,42305.0,0.0304846]
[1644654757274,0.3,42324.0,42307.0,0.330319]
[1644654757470,0.3,42324.0,42306.0,0.15]
[1644654757471,0.3,42328.0,42315.0,0.05]
[1644654757669,0.7641,42335.0,42316.0,0.0001]
[1644654757871,0.1158,42338.0,42323.0,0.05]
[1644654758071,0.21513237,42324.0,42323.0,0.05]
[1644654759300,0.47401525,42324.0,42323.0,0.05]
[1644654760300,0.52401525,42324.0,42323.0,0.05]
[1644654762763,0.52401525,42324.0,42321.0,0.00049314]
[1644654762764,0.66251525,42324.0,42321.0,0.00049314]
[1644654762961,0.35,42322.0,42321.0,0.00049314]
[1644654763155,0.35,42322.0,42310.0,0.0001]
[1644654763156,0.0435,42322.0,42310.0,0.0001]
[1644654763356,0.15,42321.0,42310.0,0.0001]
[1644654763556,0.2278517,42312.0,42310.0,0.0001]
[1644654763756,0.35633431,42311.0,42305.0,0.0304846]
[1644654763955,0.40633431,42311.0,42305.0,0.0304846]
[1644654764158,0.28302697,42311.0,42305.0,0.0304846]
[1644654764356,0.28302697,42311.0,42305.0,0.0305846]
[1644654764357,0.33302697,42311.0,42305.0,0.0305846]
[1644654764556,0.38302697,42311.0,42305.0,0.0304846]
[1644654764755,0.38302697,42311.0,42306.0,0.00049365]
[1644654765559,0.06617693,42310.0,42306.0,0.00049365]
[1644654765819,0.38302697,42311.0,42306.0,0.00045664]
[1644654766811,0.38302697,42311.0,42305.0,0.0304846]
[1644654767011,0.38302697,42311.0,42306.0,0.00045664]
[1644654767311,0.28302697,42311.0,42306.0,0.00045664]
[1644654767912,0.0435,42311.0,42306.0,0.00045664]
[1644654768114,0.3655,42323.0,42308.0,0.05]
[1644654768313,0.1435,42325.0,42309.0,0.0001]
[1644654768513,0.1435,42325.0,42309.0,0.3001]
[1644654768712,0.0435,42325.0,42310.0,0.0001]
[1644654768912,0.22270547,42315.0,42310.0,0.0001]
[1644654769316,0.23648275,42322.0,42308.0,0.05]
[1644654769317,0.23648275,42322.0,42309.0,0.3001]
[1644654769549,0.0435,42325.0,42311.0,0.05]
[1644654769750,0.0435,42325.0,42312.0,0.0001]
[1644654769954,0.17782142,42300.0,42291.0,0.5958]
[1644654770152,0.8,42324.0,42305.0,0.35564284]
[1644654770153,0.06315376,42316.0,42305.0,0.35564284]
[1644654770355,0.2127084,42314.0,42305.0,0.35564284]
[1644654770951,0.47595732,42314.0,42305.0,0.35564284]
[1644654771549,0.29382562,42314.0,42305.0,0.45564284]
[1644654772551,0.2127084,42314.0,42305.0,0.45564284]
[1644654774205,0.2127084,42314.0,42307.0,0.00053312]
[1644654775005,0.21475406,42314.0,42307.0,0.00053312]
[1644654775205,0.21475406,42314.0,42305.0,0.45564284]
[1644654775406,0.21475406,42314.0,42308.0,0.00053312]
[1644654776807,0.00204566,42314.0,42308.0,0.00053312]
[1644654777650,0.00204566,42314.0,42305.0,0.35564284]
[1644654777851,0.00204566,42314.0,42308.0,0.00053312]
[1644654778650,0.34810769,42318.0,42314.0,0.00409132]
[1644654778852,0.06596035,42315.0,42314.0,0.00409132]
[1644654779153,0.36481074,42315.0,42314.0,0.00409132]
[1644654779452,0.41481074,42315.0,42314.0,0.00409132]
[1644654779651,0.11596035,42315.0,42314.0,0.00409132]
[1644654780653,0.40110227,42315.0,42314.0,0.00409132]
[1644654782702,0.11596035,42315.0,42314.0,0.00409132]
[1644654783504,0.40302624,42315.0,42314.0,0.00409132]
[1644654783906,0.0435,42331.0,42317.0,0.75]